Cogmind - Beta 15 @@@ ROGUE MODE // 2025.05.14 @ 14:18:32 // Halloween2019/Abominations Player: Minty Result: Core destroyed Performance ------------- Evolutions (1) 500 Regions Visited (2) 400 Robots Destroyed (9) 45 Value Destroyed (496) 496 Prototype IDs (1) 20 Alien Tech Used (0) 0 Bonus (0) 0 TOTAL SCORE: 1461 Bonus ------- None Cogmind --------- Core Integrity 0/400 Matter 171/300 Energy 100/100 System Corruption 0% Temperature Cool (0) Movement Core (50) Location -9/Materials Parts ------- > --- POWER (1) -------- (None) > --- PROPULSION (2) --- (None) > --- UTILITY (2) ------ Visual Processing Unit > --- WEAPON (4) ------- (None) > --- INVENTORY (5) ---- Light Ion Engine Light Treads Aluminum Leg Compact Wheel Peak State ------------ > --- POWER ------------ Light Ion Engine > --- PROPULSION ------- Light Treads Improved Treads > --- UTILITY ---------- Visual Processing Unit > --- WEAPON ----------- Improved Assault Rifle Improved Assault Rifle > --- INVENTORY -------- Light Ion Engine Light Treads Aluminum Leg Compact Wheel [Rating: 12] Favorites ----------- Power Light Ion Engine Engine Light Ion Engine Propulsion Aluminum Leg Treads Light Treads Leg Aluminum Leg Wheel Wheel Utility Visual Processing Unit Storage Small Storage Unit Processor Visual Processing Unit Weapon Assault Rifle Energy Gun Spread Laser Ballistic Gun Assault Rifle Build | -11 -10 -9 ------- Run | Yrd Mat Mat Slots Evolved 2 | . . 2 Power . | . . . Propulsion . | . . . Utility . | . . . Weapon 2 | . . 2 Parts Attached 11 | . 7 4 Power 1 | . . 1 Engine 1 | . . 1 Core . | . . . Reactor . | . . . Propulsion 4 | . 3 1 Treads 3 | . 2 1 Leg . | . . . Wheel 1 | . 1 . Hover . | . . . Flight . | . . . Utility 1 | . 1 . Device . | . . . Storage . | . . . Processor 1 | . 1 . Hackware . | . . . Protection . | . . . Artifact . | . . . Weapon 5 | . 3 2 Energy Gun 1 | . 1 . Energy Cannon . | . . . Ballistic Gun 4 | . 2 2 Ballistic Cannon . | . . . Launcher . | . . . Special Weapon . | . . . Impact Weapon . | . . . Slashing Weapon . | . . . Piercing Weapon . | . . . Special Melee Weapon . | . . . Unidentified Prototypes 1 | . . 1 Corrupted Parts 1 | . 1 . System Corruption 5 | . 5 . Parts Lost 11 | . 4 7 Power 1 | . . 1 Propulsion 4 | . 2 2 Utility . | . . . Weapon 6 | . 2 4 Highest Loss Streak 7 | . 4 7 To Critical Strikes . | . . . Average Backups 4 | . 5 4 Power 1 | . 1 1 Propulsion 3 | . 3 2 Utility . | . . . Weapon . | . . . Tool/Special . | . . . Unused Backups 4 | . 1 3 Power 1 | . . 1 Propulsion 2 | . . 2 Utility 1 | . 1 . Weapon . | . . . Tool/Special . | . . . Average Slot Usage (%) 69 | . 87 55 Engine 10 | . 12 9 Treads 11 | . 2 19 Leg 10 | . 22 . Storage 6 | . 13 . Processor 9 | . 7 11 Energy Gun 5 | . . 8 Ballistic Gun 15 | . 25 6 Peak Build Rating 12 | . 8 12 Average Rating 7 | . 6 8 On Entrance 6 | 6 6 6 Naked Turns . | . . . Heaviest Build 12 | 11 12 7 Greatest Support 43 | 20 20 43 Greatest Overweight (x) 2 | . . 2 Average Overweight (x) . | . . . Largest Inventory Capacity 8 | . 8 5 Average Capacity 6 | . 7 5 Most Carried 6 | . 6 5 Average Carried 4 | . 5 4 Final Capacity 8 | 8 5 5 Final Carried 6 | 6 5 4 Class Distribution -------------------- 100% | Mutant Dominant Class ---------------- Mutant | -10/Materials Mutant | -9/Materials Resources | -11 -10 -9 ----------- Run | Yrd Mat Mat Matter Collected 287 | 200 19 68 Remotely . | . . . Salvage Created 365 | . 222 143 Parts 28 | . 19 9 Haulers Intercepted . | . . . Recyclers Shooed . | . . . Parts Field Recycled . | . . . Retrieved Matter . | . . . Parts Self-Destructed . | . . . Prevented . | . . . Kills | -11 -10 -9 ------- Run | Yrd Mat Mat Combat Hostiles Destroyed 8 | . 4 4 Guns 8 | . 4 4 Classes Destroyed 2 | . 2 . Watcher 1 | . 1 . Abomination 8 | . 4 4 Best Kill Streak 3 | . 2 3 Combat Bots Only 3 | . 2 3 Max Kills in Single Turn 2 | . 2 1 Gunslinging 1 | . 1 . Exploded . | . . . Melee . | . . . Uniques/NPCs Destroyed . | . . . Combat | -11 -10 -9 -------- Run | Yrd Mat Mat Hostile Shots Fired 179 | . 105 74 Missed 53 | . 40 13 Hits 126 | . 65 61 Melee 11 | . 3 8 Projectile 115 | . 62 53 AOE 9 | . 9 . Critical Strikes 7 | . 2 5 Damage Taken 1889 | . 766 1123 Core 641 | . 215 426 Absorbed by Shields . | . . . Core Remaining (%) 57 | 100 14 . Volleys Fired 49 | . 20 29 Largest 2 | . 2 2 Hottest 85 | . 40 85 Shots Fired 79 | . 39 40 Gun 79 | . 39 40 Cannon . | . . . Launcher . | . . . Special . | . . . Kinetic 63 | . 39 24 Thermal 16 | . . 16 Explosive . | . . . Electromagnetic . | . . . Robot Hit Streak 9 | . 8 9 Robot Miss Streak 5 | . 2 5 Penetration Max . | . . . Secondary Targets 3 | . 2 1 Max Gunslinging Chain 1 | . 1 1 Shots Hit Robots 63 | . 28 35 Core Hits 37 | . 11 26 Critical Kills 1 | . 1 . Critical Parts Destroyed . | . . . Critical Strikes 1 | . 1 . Destroy 1 | . 1 . Melee Attacks . | . . . Impact . | . . . Slashing . | . . . Piercing . | . . . Sneak Attacks . | . . . Combat Hostiles . | . . . Follow-up Attacks . | . . . Damage Inflicted 850 | . 374 476 Guns 850 | . 374 476 Cannons . | . . . Explosions . | . . . Melee . | . . . Ramming . | . . . Kinetic 606 | . 374 232 Thermal 244 | . . 244 Explosive . | . . . Electromagnetic . | . . . Impact . | . . . Slashing . | . . . Piercing . | . . . Highest Corruption 8 | . 8 . Average Corruption 2 | . 2 . Corruption Purged . | . . . Corruption Blocked . | . . . Effects 1 | . 1 . Message Errors 1 | . 1 . Overload Shots . | . . . Overflow Damage . | . . . Projectiles . | . . . Explosions . | . . . Melee . | . . . Knockbacks . | . . . Impact . | . . . Kinetic . | . . . Secondary . | . . . Self-Inflicted Damage . | . . . Shots . | . . . Rammed 1 | . . 1 Targets Rammed 1 | . . 1 Kicked . | . . . Crushed . | . . . Highest Temperature 300 | . 21 300 Average Temperature 115 | . 10 139 Received Heat Transfer 552 | . 156 396 Effects 1 | . . 1 Interference 1 | . . 1 Siege Activations . | . . . Martial Activations . | . . . Shielding Activations . | . . . Robots Disrupted . | . . . Combat Hostiles . | . . . Robots Corrupted . | . . . Combat Hostiles . | . . . Parts Fried . | . . . Impact Corruptions . | . . . Robots Melted . | . . . Combat Hostiles . | . . . Parts Melted . | . . . Heat Transferred 72 | . . 72 Parts Sabotaged . | . . . Parts Stolen . | . . . Parts Stripped . | . . . Power Chain Reactions . | . . . Alert | -11 -10 -9 ------- Run | Yrd Mat Mat Maximum Alert Level . | . . . Low Security (%) 100 | . 100 100 Level 1 . | . . . Level 2 . | . . . Level 3 . | . . . Level 4 . | . . . Level 5 . | . . . High Security . | . . . Max Security . | . . . Peak Influence 7 | . 7 . Initial . | . . . Average . | . . . Influence Increases 7 | . 7 . Destroy 0b10 Robot/NC 5 | . 5 . Destroy Leader 2 | . 2 . Influence Decreases 7 | . 7 . Time Decay 7 | . 7 . Squads Dispatched 3 | . 1 2 Investigation 1 | . 1 . Extermination . | . . . Reinforcement 2 | . . 2 Assault . | . . . Garrison . | . . . Intercept . | . . . Searches Triggered . | . . . Construction Impeded . | . . . Haulers Reinforced . | . . . Active Scanning Responses . | . . . Cargo Convoy Interrupts . | . . . Stealth | -11 -10 -9 --------- Run | Yrd Mat Mat Distress Signals 4 | . . 4 Communications Jammed . | . . . Distress Signals . | . . . Times Spotted 19 | . 8 11 Peak Tracking Total 8 | . 7 8 Tactical Retreats . | . . . Traps | -11 -10 -9 ------- Run | Yrd Mat Mat Traps Triggered . | . . . Indirectly . | . . . Trap Hack Attempts . | . . . Triggered . | . . . Disarmed . | . . . Reprogrammed . | . . . Reused . | . . . Traps Extracted . | . . . Installed . | . . . Triggered . | . . . Machines | -11 -10 -9 ---------- Run | Yrd Mat Mat Machines Disabled . | . . . Max in Single Turn . | . . . Machines Repaired . | . . . Machines Dismantled . | . . . Machines Sabotaged . | . . . Overloaded Fab Kills . | . . . Hacking | -11 -10 -9 --------- Run | Yrd Mat Mat Machines Accessed . | . . . Terminals . | . . . Fabricators . | . . . Repair Stations . | . . . Recycling Units . | . . . Scanalyzers . | . . . Garrison Access . | . . . Total Hacks . | . . . Successful . | . . . Failed . | . . . Catastrophic . | . . . Database Lockouts . | . . . Manual . | . . . Terminals . | . . . Fabricators . | . . . Repair Stations . | . . . Recycling Units . | . . . Scanalyzers . | . . . Garrison Access . | . . . Terminal Hacks . | . . . Fabricator Hacks . | . . . Repair Station Hacks . | . . . Recycling Unit Hacks . | . . . Scanalyzer . | . . . Garrison Access Hacks . | . . . Unauthorized Hacks . | . . . Terminals . | . . . Fabricators . | . . . Repair Stations . | . . . Recycling Units . | . . . Scanalyzers . | . . . Garrison Access . | . . . Data Cores Recovered . | . . . Used . | . . . Hacking Detections . | . . . Full Trace Events . | . . . Feedback Events . | . . . Feedback Blocked . | . . . Robot Schematics Acquired . | . . . Robots Built . | . . . Authchips . | . . . Time . | . . . Total Robot Build Rating . | . . . Part Schematics Acquired . | . . . Parts Built . | . . . Authchips . | . . . Time . | . . . Total Part Build Rating . | . . . Parts Repaired . | . . . Time . | . . . Parts Recycled . | . . . Recycled Matter . | . . . Retrieved Matter . | . . . Retrieved Components . | . . . Parts Scanalyzed . | . . . Part Schematics Acquired . | . . . Parts Damaged . | . . . Bothacking | -11 -10 -9 ------------ Run | Yrd Mat Mat Used RIF Installer . | . . . Robots Hacked . | . . . Non-combat . | . . . Combat . | . . . Robot Hacks Applied . | . . . Relay Couplers Released . | . . . Fabnet Peak Effective % . | . . . Robots Rewired . | . . . Allies Hacked . | . . . Hacks Repelled . | . . . Allies | -11 -10 -9 -------- Run | Yrd Mat Mat Total Allies . | . . . Largest Group . | . . . Highest-Rated Group . | . . . Highest-Rated Ally . | . . . Total Orders . | . . . Ally Attacks . | . . . Total Damage . | . . . Kills . | . . . Allies Corrupted . | . . . Allies Melted . | . . . Intel | -11 -10 -9 ------- Run | Yrd Mat Mat Active Infowar (turns) 257 | . 91 166 Optics 257 | . 91 166 Robot Analysis Total . | . . . Derelict Logs Recovered . | . . . Drone Launches . | . . . Drone Recoveries . | . . . Exploration | -11 -10 -9 ------------- Run | Yrd Mat Mat Turns Passed 337 | . 150 187 Spaces Moved 166 | 1 69 96 Core 63 | . 16 47 Treads 49 | . . 49 Legs 47 | 1 46 . Wheels 7 | . 7 . Hover . | . . . Flight . | . . . Fastest Speed 50 | 120 50 50 Average Speed 105 | 120 99 109 Slowest Speed 160 | 120 120 160 Overloaded Moves . | . . . Propulsion Burnouts . | . . . Robots Hopped . | . . . Potential Cave-ins . | . . . Cave-ins Triggered . | . . . Exploration Rate (%) 20 | 2 37 23 Regions Visited 2 Branch Regions . Pre-discovered Areas . | . . . Known Exits Taken . | . . . Unknown Exits Taken 2 | 1 1 . Scrap Searched . | . . . Spaces Dug . | . . . Terrain Destroyed . | . . . Melee . | . . . Projectile . | . . . AOE . | . . . Terrain Rammed . | . . . Walls Destroyed . | . . . Machines Disabled . | . . . Actions | -11 -10 -9 --------- Run | Yrd Mat Mat Total 231 | . 99 132 Wait 2 | . 1 1 Move 164 | . 68 96 Hop . | . . . Pick Up . | . . . Fast Attach 4 | . 2 2 Attach 5 | . 3 2 Detach 2 | . 2 . Swap 3 | . 2 1 Drop 1 | . 1 . Fire 49 | . 20 29 Melee . | . . . Ram 1 | . . 1 Kick . | . . . Crush . | . . . Escape Stasis . | . . . Rewire . | . . . Trap . | . . . Miscellaneous . | . . . Route ------- -11/Scrapyard -10/Materials -9/Materials History --------- Turn | Location | Event 1 | -11/Scrapyard | Discovered new exit (range 0) 1 | -11/Scrapyard | Entered Materials 134 | -10/Materials | Core integrity fell below 50% 147 | -10/Materials | Core integrity fell below 20% 148 | -10/Materials | Discovered new exit (range 5) 151 | -10/Materials | Entered another Materials area 151 | -9/Materials | Evolved 2 slots: Weapon x2 173 | -9/Materials | Lost 4 parts (2n2w) 319 | -9/Materials | Build established: Mutant 321 | -9/Materials | Core integrity fell below 50% 329 | -9/Materials | Core integrity fell below 20% 338 | -9/Materials | Core destroyed Last Messages --------------- 00311_ Purification Channel disabled. 00315_ Lgt. Ion Engine destroyed. 00316_ Critical hit (Intensify). 00317_ Imp. Treads destroyed. 00319_ Imp. Assault Rifle destroyed. 00323_ Slammed into Lesser Abomination. 00326_ Lesser Abomination triggered Blade Trap. 00326_ Massive razor-sharp blades shoot up from within the floor. 00326_ Ion Engine severed. 00327_ Lesser Abomination absorbs Ion Engine. 00328_ Unstable Anomaly suddenly flashes brightly. 00328_ Lesser Abomination feeds off Hungry Anomaly, taking Wheel, Beam Rifle. 00329_ Lesser Abomination spits out Lgt. Treads. 00329_ Lesser Abomination feeds off Hungry Anomaly, taking Lgt. Treads. 00329_ Hungry Anomaly eats Lgt. Treads. 00332_ 3 Matter blinks away. 00333_ Lesser Abomination feeds off Hungry Anomaly, taking Lgt. Treads. 00334_ Unstable Anomaly suddenly flashes brightly. 00338_ Engulfed by violent ripples tearing at the fabric of space. Map ----- +----------------------------------------------------+ | % "?#?????# ??#"""" " #?????????????? | | ""# ????# ??# """ #?????????????? | | "" ???# ??# #?????????????? | | "" #### ??# "" % #?????????????? | | "" ??? "T #?????????????? | | "" #????"" #?????????????? | | #?# #????? " #?????????????? | | %% ""#### ########/""" " #?????????????? | | % " ##????????????? | | "" "#????? ??????? | | ^ """"""#" % #????? ??????? | | %% "###+####/###########"""""#" #???? ??????? | | ???????# ## #??? ?????? | | ???????# " """" #" ; ### = #????? | | ???????# """""""""% #; ; = [%= |??? | | ???????#% """ """ ;; % !%=%??? | | ???????# ;; ; = *??? | | ???????#############;; ; #######+##????? | | ??????????????????# ; ; #?????????????? | | ??????????????????## ; ; #?????????????? | | ???????????????????# ;; ####;;;; #?????????????? | | ?????????????????###;;;;# #?????????????? | | ??????????#??????+ #?????????????? | | ???????? ; ##;;;;; #?????????????? | | ????????;;;;;;;;;;; ;;;;;;;;;; #?????????????? | | ???????? ;;;;; @ # #?????????????? | | ???????? % ; ; ;??????????? | | ???????? ;;;;; ; n;;;;;+????????? | | ????????? ;;;; ; n ; ??????? | | ????????? ;;### % ; ??????? | | ?????????? "??# ; ??????? | | ?????????? "???# ;;;;;####+##??????? | | ??????????% ????# ######????????????? | | ??????????? ???????# #?????????????????? | | ??????????? ????????##########?????????????????? | | ?????????????????????????????????????????????????? | | ?????????????????????????????????????????????????? | | ?????????????????????????????????????????????????? | | ?????????????????????????????????????????????????? | | ?????????????????????????????????????????????????? | | ?????????????????????????????????????????????????? | | ?????????????????????????????????????????????????? | | ?????????????????????????????????????????????????? | | ?????????????????????????????????????????????????? | | ?????????????????????????????????????????????????? | | ?????????????????????????????????????????????????? | | ?????????????????????????????????????????????????? | | ?????????????????????????????????????????????????? | | ?????????????????????????????????????????????????? | | ?????????????????????????????????????????????????? | +----------------------------------------------------+ Best States ------------- Heat Dissipation 28 Energy Generation 10 Energy Capacity 125 Matter Stores 300 Matter Capacity 300 Sight Range 18 Terrain Scan Density 10 Evasion (%) 55 Recoil Reduction 2 Item Schematics ----------------- None Robot Schematics ------------------ None Fabricated ------------ Nothing Repaired ---------- Nothing Alien Tech Used ----------------- None Achievements -------------- None Challenges ------------ None Game ------ Seed SuspensionTransmissionSabre Manual? 0 Play Time 00:06:44 Cumulative 1038.9 hours Start 2025.05.14 @ 14:10:49 End 2025.05.14 @ 14:18:32 Sessions 1 Manual Loads 0 Difficulty Rogue Special Mode Halloween2019/Abominations Game No. 1279 Rogue 996 Adventurer 124 Explorer 159 Win Type - Total 45 Types 31/0/8/4/1/0/0/1/0/0 Lore% 91 Gallery% 85 Achievement% 80 Wizard Run 0 Options --------- Layout 0 ASCII 0 Keyboard 1 Movement Numpad Keybinds 0 Fullscreen 2 Font 18/X11 Map View 76x50 Zoom Use 0% Tactical HUD 1 Map Filters NONE Filters NONE Steam 1 RUN: d0b5c0b7-ad6b-4d31-86b4-42050e5ea5e8